[Event "AUT-ch Open 2020"]
[Site "Graz"]
[Date "2020.02.15"]
[Round "2.24"]
[White "Milikow, Yoav"]
[Black "Poetz, Florian"]
[Result "0-1"]
[ECO "E39"]
[WhiteElo "2296"]
[BlackElo "2425"]
[Annotator "ChessBase"]
[PlyCount "139"]
[EventDate "2020.02.14"]
[EventType "swiss"]
[EventCountry "AUT"]
[SourceTitle "playchess.com"]
[Source "ChessBase"]
[SourceQuality "1"]
[TimeControl "40/5400+30:1800+30"]

1. d4 {[%emt 0:00:00]} Nf6 {[%emt 0:00:00]} 2. c4 {[%emt 0:00:00]} e6 {[%emt 0:00:00]} 3. Nc3 {[%emt 0:00:24]} Bb4 {[%emt 0:00:02]} 4. Qc2 {[%emt 0:00:12]} c5 {[%emt 0:01:16]} 5. dxc5 {[%emt 0:03:58]} O-O {[%emt 0:00:09]} 6. Nf3 {[%emt 0:00:52]} Qc7 {[%emt 0:00:40]} 7. g4 {[%emt 0:15:22]} Nxg4 {[%emt 0:11:58]} 8. Rg1 {[%emt 0:11:28]} f5 {[%emt 0:02:22]} 9. Bd2 {[%emt 0:08:32]} Bxc5 {[%emt 0:11:19]} 10. e3 {[%emt 0:00:42]} Nxh2 {[%emt 0:08:00]} 11. Be2 {[%emt 0:03:34]} Nxf3+ {[%emt 0:01:01]} 12. Bxf3 {[%emt 0:00:02]} Nc6 {[%emt 0:00:18]} 13. Nb5 {[%emt 0:03:01]} Qb8 {[%emt 0:08:33]} 14. Bc3 {[%emt 0:02:48]} Ne5 {[%emt 0:01:37]} 15. O-O-O {[%emt 0:01:56]} Rf7 {[%emt 0:10:59]} 16. Bh5 g6 17. f4 Bxe3+ 18. Kb1 Bxf4 19. Qf2 Bh6 20. Nd6 Bg7 21. Qh4 Qc7 22. Bxe5 Bxe5 23. Bxg6 Rg7 24. Ne8 Qb6 25. Nf6+ Kh8 26. Rg2 Qd8 27. Rh1 Qxf6 28. Qh5 Kg8 29. Bxh7+ Kf8 30. Bg6 Ke7 31. c5 b6 32. Qf3 Rb8 33. c6 dxc6 34. Qa3+ c5 35. Qxa7+ Bb7 36. Rh8 Rxh8 37. Qxb7+ Kd8 38. Rd2+ Bd4 39. Qb8+ Kd7 40. Qb7+ Kd8 41. Qb8+ Kd7 42. Qb7+ Kd6 43. Qxb6+ Ke5 44. Re2+ Kf4 45. Qd6+ Kf3 46. Rxe6 Rxg6 47. Qd5+ Kf2 48. Rxf6 Rxf6 49. b4 f4 50. bxc5 Be3 51. Qb7 Rhh6 52. Qe4 Rc6 53. Qc2+ Kg3 54. Qc3 Rh1+ 55. Kb2 Rxc5 56. Qg7+ Kf2 57. a4 f3 58. Ka3 Rhh5 59. Kb3 Rhg5 60. Qh6 Kg2 61. Qe6 Rce5 62. Qc6 Kg3 63. Qa6 f2 64. Qf1 Ba7 65. Qa6 Bc5 66. a5 Re1 67. Qf6 Be3 68. Qd6+ Bf4 69. Qd3+ Re3 70. Qxe3+ 0-1

[Event "AUT-ch Open 2020"]
[Site "Graz"]
[Date "2020.02.15"]
[Round "2.25"]
[White "Handler, Lukas"]
[Black "Papakonstantinou, Dimitrios"]
[Result "1-0"]
[ECO "E73"]
[WhiteElo "2422"]
[BlackElo "2275"]
[Annotator "ChessBase"]
[PlyCount "66"]
[EventDate "2020.02.14"]
[EventType "swiss"]
[EventCountry "AUT"]
[SourceTitle "playchess.com"]
[Source "ChessBase"]
[SourceQuality "1"]
[TimeControl "40/5400+30:1800+30"]

1. d4 {[%emt 0:00:00]} Nf6 {[%emt 0:00:00]} 2. c4 {[%emt 0:00:00]} d6 {[%emt 0:00:00]} 3. Nc3 {[%emt 0:00:00]} g6 {[%emt 0:00:04]} 4. e4 {[%emt 0:00:00]} Bg7 {[%emt 0:00:06]} 5. Be2 {[%emt 0:00:00]} O-O {[%emt 0:00:14]} 6. Be3 {[%emt 0:00:02]} Nc6 {[%emt 0:00:53]} 7. d5 {[%emt 0:00:34]} Ne5 {[%emt 0:00:06]} 8. f4 {[%emt 0:00:35]} Neg4 {[%emt 0:00:12]} 9. Bd2 {[%emt 0:11:17]} Nh6 {[%emt 0:00:39]} 10. h3 {[%emt 0:06:04]} e6 {[%emt 0:07:22]} 11. g4 {[%emt 0:13:19]} exd5 {[%emt 0:04:51]} 12. cxd5 {[%emt 0:04:08]} Re8 {[%emt 0:02:27]} 13. Qc2 {[%emt 0:04:35]} c6 {[%emt 0:06:18]} 14. O-O-O {[%emt 0:10:05]} b5 {[%emt 0:06:05]} 15. dxc6 {[%emt 0:10:04]} b4 {[%emt 0:00:43]} 16. e5 {[%emt 0:08:00]} dxe5 {[%emt 0:11:45]} 17. Nb5 {[%emt 0:01:41]} Qa5 {[%emt 0:07:45]} 18. a3 {[%emt 0:02:42]} Nd5 {[%emt 0:03:43]} 19. Bc4 {[%emt 0:02:26]} exf4 {[%emt 0:08:28]} 20. Qb3 {[%emt 0:11:34]} Be6 {[%emt 0:04:52]} 21. Nd6 {[%emt 0:01:56]} Qc5 {[%emt 0:07:19]} 22. Nxe8 {[%emt 0:02:00]} Rxe8 {[%emt 0:00:06]} 23. Kb1 {[%emt 0:02:12]} bxa3 {[%emt 0:01:20]} 24. Nf3 {[%emt 0:03:57]} axb2 {[%emt 0:08:02]} 25. Rhe1 {[%emt 0:00:15]} Rc8 {[%emt 0:00:17]} 26. Ne5 {[%emt 0:01:08]} a5 {[%emt 0:01:43]} 27. Qb5 {[%emt 0:01:15]} Qxb5 {[%emt 0:10:59]} 28. Bxb5 {[%emt 0:00:02]} Rb8 {[%emt 0:00:36]} 29. Bc4 {[%emt 0:01:27]} a4 {[%emt 0:01:24]} 30. Bxd5 {[%emt 0:00:40]} Bxd5 {[%emt 0:00:02]} 31. c7 {[%emt 0:00:09]} Ra8 {[%emt 0:01:09]} 32. Bxf4 {[%emt 0:01:13]} a3 {[%emt 0:00:57]} 33. Rxd5 {[%emt 0:00:12]} a2+ 1-0

[Event "AUT-ch Open 2020"]
[Site "Graz"]
[Date "2020.02.15"]
[Round "2.26"]
[White "Dimitrov, Vladimir"]
[Black "Socko, Monika"]
[Result "1-0"]
[ECO "E48"]
[WhiteElo "2285"]
[BlackElo "2419"]
[Annotator "ChessBase"]
[PlyCount "85"]
[EventDate "2020.02.14"]
[EventType "swiss"]
[EventCountry "AUT"]
[SourceTitle "playchess.com"]
[Source "ChessBase"]
[SourceQuality "1"]
[TimeControl "40/5400+30:1800+30"]

1. d4 {[%emt 0:00:00]} Nf6 {[%emt 0:00:00]} 2. c4 {[%emt 0:00:00]} e6 {[%emt 0:00:00]} 3. Nc3 {[%emt 0:00:00]} Bb4 {[%emt 0:00:00]} 4. e3 {[%emt 0:00:16]} O-O {[%emt 0:00:07]} 5. Bd3 {[%emt 0:00:25]} d5 {[%emt 0:00:12]} 6. cxd5 {[%emt 0:00:34]} exd5 {[%emt 0:00:03]} 7. Nge2 {[%emt 0:00:18]} Re8 {[%emt 0:00:41]} 8. Bd2 {[%emt 0:00:37]} Bd6 {[%emt 0:01:17]} 9. Rc1 {[%emt 0:01:08]} a6 {[%emt 0:01:53]} 10. O-O {[%emt 0:02:25]} Nbd7 {[%emt 0:08:21]} 11. Nf4 {[%emt 0:02:49]} c6 {[%emt 0:09:49]} 12. Qc2 {[%emt 0:02:00]} Nf8 {[%emt 0:01:15]} 13. f3 {[%emt 0:02:40]} Bd7 {[%emt 0:10:54]} 14. Kh1 {[%emt 0:03:56]} Qb8 {[%emt 0:06:31]} 15. g3 {[%emt 0:17:25]} Qa7 {[%emt 0:02:26]} 16. Na4 {[%emt 0:15:07]} b6 {[%emt 0:06:01]} 17. b4 {[%emt 0:08:40]} Rac8 {[%emt 0:04:41]} 18. Qb3 {[%emt 0:03:16]} Ne6 {[%emt 0:03:38]} 19. Nxe6 {[%emt 0:04:50]} Bxe6 {[%emt 0:04:51]} 20. Rc2 {[%emt 0:00:50]} g6 {[%emt 0:14:37]} 21. Bc1 {[%emt 0:07:07]} Nd7 {[%emt 0:02:04]} 22. Qb1 {[%emt 0:03:39]} b5 {[%emt 0:01:33]} 23. Nc5 {[%emt 0:00:09]} Nb6 {[%emt 0:00:03]} 24. e4 {[%emt 0:05:54]} Bh3 {[%emt 0:06:03]} 25. Rg1 {[%emt 0:01:16]} dxe4 {[%emt 0:01:19]} 26. Nxe4 {[%emt 0:02:18]} Be7 {[%emt 0:00:04]} 27. g4 {[%emt 0:00:22]} Nd5 {[%emt 0:01:28]} 28. Nf2 {[%emt 0:05:59]} Qxd4 {[%emt 0:01:13]} 29. Be4 {[%emt 0:01:00]} Nxb4 {[%emt 0:12:32]} 30. Rd2 {[%emt 0:00:48]} Qc3 {[%emt 0:00:24]} 31. Nxh3 {[%emt 0:01:25]} Bc5 {[%emt 0:00:02]} 32. Nf2 {[%emt 0:01:13]} Rcd8 {[%emt 0:00:09]} 33. Rgd1 {[%emt 0:00:39]} Rxd2 {[%emt 0:01:04]} 34. Bxd2 {[%emt 0:00:26]} Qc4 {[%emt 0:00:15]} 35. Nd3 {[%emt 0:04:06]} Nxd3 {[%emt 0:00:51]} 36. Qxd3 {[%emt 0:00:24]} Qxa2 {[%emt 0:00:05]} 37. Bxc6 {[%emt 0:00:12]} Rc8 {[%emt 0:00:45]} 38. Bd5 {[%emt 0:00:31]} Qa4 {[%emt 0:00:03]} 39. Bb3 {[%emt 0:00:57]} Qd4 {[%emt 0:00:54]} 40. Qxd4 {[%emt 0:00:24]} Bxd4 {[%emt 0:00:02]} 41. Bh6 {[%emt 0:30:22]} Rd8 {[%emt 0:31:31]} 42. Bg5 {[%emt 0:00:55]} Rd6 {[%emt 0:00:01]} 43. Be7 {[%emt 0:00:19]} 1-0

[Event "AUT-ch Open 2020"]
[Site "Graz"]
[Date "2020.02.15"]
[Round "2.27"]
[White "Nomin-Erdene, Davaademberel"]
[Black "Giannoulakis, Lampros"]
[Result "1-0"]
[ECO "C47"]
[WhiteElo "2417"]
[BlackElo "2266"]
[Annotator "ChessBase"]
[PlyCount "73"]
[EventDate "2020.02.14"]
[EventType "swiss"]
[EventCountry "AUT"]
[SourceTitle "playchess.com"]
[Source "ChessBase"]
[SourceQuality "1"]
[TimeControl "40/5400+30:1800+30"]

1. e4 {[%emt 0:00:00]} e5 {[%emt 0:14:29]} 2. Nf3 {[%emt 0:00:00]} Nc6 {[%emt 0:00:23]} 3. Nc3 {[%emt 0:01:17]} Nf6 {[%emt 0:00:50]} 4. d4 {[%emt 0:00:10]} exd4 {[%emt 0:00:36]} 5. Nxd4 {[%emt 0:00:06]} Bb4 {[%emt 0:00:46]} 6. Nxc6 {[%emt 0:00:13]} bxc6 {[%emt 0:00:04]} 7. Bd3 {[%emt 0:00:05]} O-O {[%emt 0:00:18]} 8. O-O {[%emt 0:00:11]} d5 {[%emt 0:00:25]} 9. exd5 {[%emt 0:00:06]} cxd5 {[%emt 0:00:06]} 10. h3 {[%emt 0:00:04]} c6 {[%emt 0:00:47]} 11. Qf3 {[%emt 0:00:32]} Re8 {[%emt 0:00:48]} 12. Ne2 {[%emt 0:10:20]} Rb8 {[%emt 0:24:04]} 13. Nd4 {[%emt 0:11:04]} Bd7 {[%emt 0:01:09]} 14. Bf4 {[%emt 0:15:02]} Rb7 {[%emt 0:02:36]} 15. c4 {[%emt 0:01:18]} Bf8 {[%emt 0:03:10]} 16. b3 {[%emt 0:03:48]} Qb6 {[%emt 0:08:20]} 17. Nf5 {[%emt 0:18:44]} dxc4 {[%emt 0:11:50]} 18. bxc4 {[%emt 0:00:38]} Bxf5 {[%emt 0:00:18]} 19. Bxf5 {[%emt 0:00:06]} Qa6 {[%emt 0:08:19]} 20. Bg5 {[%emt 0:05:13]} Nd7 {[%emt 0:06:01]} 21. Rfe1 {[%emt 0:04:34]} Ne5 {[%emt 0:01:38]} 22. Qg3 {[%emt 0:01:51]} Qa5 {[%emt 0:00:29]} 23. Re3 {[%emt 0:06:12]} g6 {[%emt 0:01:02]} 24. Bc2 {[%emt 0:13:45]} Rb2 {[%emt 0:03:58]} 25. Bb3 {[%emt 0:01:01]} Bc5 {[%emt 0:03:14]} 26. Rae1 {[%emt 0:04:29]} Qxe1+ {[%emt 0:02:39]} 27. Rxe1 {[%emt 0:00:03]} Bxf2+ {[%emt 0:00:12]} 28. Qxf2 {[%emt 0:00:29]} Rxf2 {[%emt 0:00:04]} 29. c5 {[%emt 0:02:23]} Rf5 {[%emt 0:01:27]} 30. Bd2 {[%emt 0:00:17]} Rd8 {[%emt 0:02:32]} 31. Ba5 {[%emt 0:00:04]} Nd3 {[%emt 0:02:07]} 32. Re3 {[%emt 0:00:37]} Rd7 {[%emt 0:00:42]} 33. Bc3 {[%emt 0:01:05]} Kf8 {[%emt 0:00:22]} 34. Kh2 {[%emt 0:00:36]} Nf4 {[%emt 0:00:36]} 35. Ba4 {[%emt 0:00:13]} Nd5 {[%emt 0:00:36]} 36. Bxc6 {[%emt 0:00:20]} Rc7 {[%emt 0:00:28]} 37. Re8# {[%emt 0:00:06]} 1-0

[Event "AUT-ch Open 2020"]
[Site "Graz"]
[Date "2020.02.15"]
[Round "2.28"]
[White "Brinovec, David"]
[Black "Kosakowski, Jakub"]
[Result "1-0"]
[ECO "B08"]
[WhiteElo "2279"]
[BlackElo "2413"]
[Annotator "ChessBase"]
[PlyCount "101"]
[EventDate "2020.02.14"]
[EventType "swiss"]
[EventCountry "AUT"]
[SourceTitle "playchess.com"]
[Source "ChessBase"]
[SourceQuality "1"]
[TimeControl "40/5400+30:1800+30"]

1. e4 {[%emt 0:00:00]} d6 {[%emt 0:01:21]} 2. d4 {[%emt 0:00:02]} Nf6 {[%emt 0:00:16]} 3. Nc3 {[%emt 0:00:07]} g6 {[%emt 0:00:55]} 4. Nf3 {[%emt 0:01:44]} Bg7 {[%emt 0:00:10]} 5. Bf4 {[%emt 0:00:26]} c5 {[%emt 0:09:22]} 6. d5 Bg4 {[%emt 0:24:29]} 7. Qd2 {[%emt 0:05:13]} Bxf3 {[%emt 0:06:03]} 8. gxf3 {[%emt 0:00:03]} Nbd7 {[%emt 0:00:18]} 9. a4 {[%emt 0:11:03]} Qa5 {[%emt 0:02:27]} 10. Nb5 {[%emt 0:02:16]} Qxd2+ {[%emt 0:00:59]} 11. Bxd2 {[%emt 0:00:14]} O-O {[%emt 0:00:13]} 12. a5 {[%emt 0:05:28]} a6 {[%emt 0:00:49]} 13. Nc3 {[%emt 0:01:52]} e6 {[%emt 0:08:08]} 14. O-O-O {[%emt 0:20:32]} exd5 {[%emt 0:00:56]} 15. Nxd5 {[%emt 0:01:01]} Nxd5 {[%emt 0:00:09]} 16. exd5 {[%emt 0:00:06]} Rfe8 {[%emt 0:01:11]} 17. h4 {[%emt 0:04:53]} h5 {[%emt 0:03:45]} 18. Bh3 {[%emt 0:02:37]} Ne5 {[%emt 0:00:51]} 19. Bf4 {[%emt 0:01:48]} Nc4 {[%emt 0:03:38]} 20. b3 {[%emt 0:01:42]} Bb2+ {[%emt 0:04:42]} 21. Kb1 {[%emt 0:00:24]} Be5 {[%emt 0:00:06]} 22. Bc1 {[%emt 0:11:55]} Nxa5 {[%emt 0:00:09]} 23. f4 {[%emt 0:00:48]} Bf6 {[%emt 0:03:08]} 24. f5 b5 {[%emt 0:08:10]} 25. fxg6 {[%emt 0:00:55]} fxg6 {[%emt 0:00:05]} 26. Be6+ {[%emt 0:02:56]} Kh7 {[%emt 0:01:31]} 27. f4 {[%emt 0:00:17]} Ra7 {[%emt 0:00:42]} 28. f5 {[%emt 0:00:15]} gxf5 {[%emt 0:06:06]} 29. Rdf1 {[%emt 0:00:40]} Bd4 {[%emt 0:03:18]} 30. Rxf5 {[%emt 0:00:55]} Kh8 {[%emt 0:00:02]} 31. Rxh5+ {[%emt 0:01:55]} Rh7 {[%emt 0:00:03]} 32. Rxh7+ {[%emt 0:01:31]} Kxh7 {[%emt 0:00:02]} 33. Rf1 {[%emt 0:00:06]} b4 {[%emt 0:03:05]} 34. Rf7+ {[%emt 0:11:40]} Kg6 {[%emt 0:01:13]} 35. Bd2 {[%emt 0:06:15]} Kh5 {[%emt 0:04:46]} 36. Rf5+ {[%emt 0:00:51]} Kg6 {[%emt 0:02:03]} 37. h5+ {[%emt 0:00:56]} Kh7 {[%emt 0:00:01]} 38. Kc1 {[%emt 0:02:08]} Kh8 {[%emt 0:01:28]} 39. h6 {[%emt 0:02:53]} Nb7 {[%emt 0:00:27]} 40. Kd1 {[%emt 0:00:36]} Be5 {[%emt 0:02:02]} 41. Ke2 {[%emt 0:30:18]} Nd8 {[%emt 0:30:05]} 42. Bd7 {[%emt 0:00:05]} Rg8 {[%emt 0:00:03]} 43. Kf3 {[%emt 0:00:55]} Kh7 {[%emt 0:00:30]} 44. Bg5 {[%emt 0:00:35]} Kg6 {[%emt 0:01:24]} 45. Kg4 {[%emt 0:00:00]} a5 {[%emt 0:00:00]} 46. Rf3 {[%emt 0:00:00]} Rh8 {[%emt 0:00:00]} 47. Bb5 {[%emt 0:00:00]} c4 {[%emt 0:00:00]} 48. Bxc4 {[%emt 0:00:00]} Rxh6 {[%emt 0:00:00]} 49. Bd3+ {[%emt 0:00:00]} Kg7 {[%emt 0:00:00]} 50. Bxh6+ {[%emt 0:00:00]} Kxh6 {[%emt 0:00:00]} 51. Rf8 {[%emt 0:00:00]} 1-0

[Event "AUT-ch Open 2020"]
[Site "Graz"]
[Date "2020.02.15"]
[Round "2.29"]
[White "Schwabeneder, Florian"]
[Black "Meurs, Tom"]
[Result "1-0"]
[ECO "A06"]
[WhiteElo "2412"]
[BlackElo "2249"]
[Annotator "ChessBase"]
[PlyCount "61"]
[EventDate "2020.02.14"]
[EventType "swiss"]
[EventCountry "AUT"]
[SourceTitle "playchess.com"]
[Source "ChessBase"]
[SourceQuality "1"]
[TimeControl "40/5400+30:1800+30"]

1. Nf3 {[%emt 0:00:00]} d5 {[%emt 0:00:00]} 2. g3 {[%emt 0:00:00]} Nf6 {[%emt 0:00:27]} 3. Bg2 {[%emt 0:00:06]} Bg4 {[%emt 0:01:38]} 4. O-O {[%emt 0:00:45]} Nbd7 {[%emt 0:00:23]} 5. d3 {[%emt 0:03:14]} e5 {[%emt 0:02:02]} 6. h3 {[%emt 0:06:51]} Bh5 {[%emt 0:03:36]} 7. c4 {[%emt 0:07:24]} c6 {[%emt 0:02:14]} 8. cxd5 {[%emt 0:15:03]} cxd5 {[%emt 0:00:31]} 9. Bg5 {[%emt 0:01:16]} Be7 {[%emt 0:16:39]} 10. Nc3 {[%emt 0:10:13]} d4 {[%emt 0:05:11]} 11. Bxf6 {[%emt 0:00:40]} Bxf6 {[%emt 0:07:49]} 12. Nd5 {[%emt 0:00:30]} O-O {[%emt 0:01:24]} 13. Rc1 {[%emt 0:03:38]} Nb6 {[%emt 0:09:51]} 14. Nxf6+ {[%emt 0:07:37]} Qxf6 {[%emt 0:00:24]} 15. Rc7 {[%emt 0:00:49]} Rab8 {[%emt 0:00:23]} 16. Qb3 {[%emt 0:03:55]} Rfe8 {[%emt 0:07:59]} 17. a4 {[%emt 0:05:50]} Qd6 {[%emt 0:03:39]} 18. Rfc1 {[%emt 0:00:59]} Re7 {[%emt 0:18:01]} 19. Rxe7 {[%emt 0:05:29]} Qxe7 {[%emt 0:00:03]} 20. a5 {[%emt 0:00:17]} Nc8 {[%emt 0:01:54]} 21. g4 {[%emt 0:02:12]} Bg6 {[%emt 0:00:09]} 22. Qd5 {[%emt 0:00:09]} e4 {[%emt 0:02:29]} 23. Ne5 {[%emt 0:01:59]} exd3 {[%emt 0:01:42]} 24. exd3 {[%emt 0:00:08]} Nd6 {[%emt 0:01:07]} 25. a6 {[%emt 0:02:30]} bxa6 {[%emt 0:07:55]} 26. Qxd4 {[%emt 0:05:30]} Nb5 {[%emt 0:01:08]} 27. Qd5 {[%emt 0:00:55]} Re8 {[%emt 0:00:57]} 28. d4 {[%emt 0:00:48]} Qg5 {[%emt 0:00:53]} 29. Rc6 {[%emt 0:04:47]} Qf4 {[%emt 0:00:53]} 30. Qd7 {[%emt 0:00:16]} Rf8 {[%emt 0:00:34]} 31. Rc8 {[%emt 0:04:06]} 1-0

[Event "AUT-ch Open 2020"]
[Site "Graz"]
[Date "2020.02.15"]
[Round "2.30"]
[White "Steindl, Johannes"]
[Black "Karthikeyan, P.."]
[Result "0-1"]
[ECO "B94"]
[WhiteElo "2273"]
[BlackElo "2406"]
[Annotator "ChessBase"]
[PlyCount "52"]
[EventDate "2020.02.14"]
[EventType "swiss"]
[EventCountry "AUT"]
[SourceTitle "playchess.com"]
[Source "ChessBase"]
[SourceQuality "1"]
[TimeControl "40/5400+30:1800+30"]

1. e4 {[%emt 0:04:59]} c5 {[%emt 0:00:00]} 2. Nf3 {[%emt 0:00:05]} d6 {[%emt 0:00:00]} 3. d4 {[%emt 0:00:04]} cxd4 {[%emt 0:00:00]} 4. Nxd4 {[%emt 0:00:09]} Nf6 {[%emt 0:00:00]} 5. Nc3 {[%emt 0:00:03]} a6 {[%emt 0:00:02]} 6. Bg5 {[%emt 0:00:05]} Nbd7 {[%emt 0:02:04]} 7. Qe2 {[%emt 0:00:08]} h6 {[%emt 0:00:30]} 8. Bh4 {[%emt 0:00:04]} b5 {[%emt 0:00:27]} 9. f4 {[%emt 0:01:25]} g5 {[%emt 0:05:30]} 10. fxg5 {[%emt 0:04:14]} hxg5 {[%emt 0:00:03]} 11. Bxg5 {[%emt 0:00:07]} Bb7 {[%emt 0:01:16]} 12. O-O-O {[%emt 0:08:59]} e6 {[%emt 0:00:05]} 13. e5 {[%emt 0:08:28]} dxe5 {[%emt 0:09:32]} 14. Ndxb5 {[%emt 0:15:29]} axb5 {[%emt 0:01:06]} 15. Rxd7 {[%emt 0:00:05]} Kxd7 {[%emt 0:05:43]} 16. Qxe5 {[%emt 0:00:05]} Bh6 {[%emt 0:04:16]} 17. Bxb5+ {[%emt 0:00:05]} Kc8 {[%emt 0:00:10]} 18. Bxh6 {[%emt 0:07:14]} Rxh6 {[%emt 0:00:27]} 19. Qc5+ {[%emt 0:00:05]} Kb8 {[%emt 0:00:17]} 20. Rd1 {[%emt 0:00:22]} Nd5 {[%emt 0:00:57]} 21. Bc6 {[%emt 0:04:12]} Ra5 {[%emt 0:05:46]} 22. Nb5 {[%emt 0:01:47]} Qe7 {[%emt 0:02:52]} 23. Qc4 {[%emt 0:02:01]} Rh4 {[%emt 0:01:59]} 24. g4 {[%emt 0:04:25]} Qg5+ {[%emt 0:01:54]} 25. Kb1 {[%emt 0:04:12]} Rxg4 {[%emt 0:00:41]} 26. Nd4 {[%emt 0:02:49]} Rg1 {[%emt 0:07:47]} 0-1

[Event "AUT-ch Open 2020"]
[Site "Graz"]
[Date "2020.02.15"]
[Round "2.31"]
[White "Ioannidis, Evgenios"]
[Black "Bakalarz, Mietek"]
[Result "1-0"]
[ECO "A06"]
[WhiteElo "2399"]
[BlackElo "2245"]
[Annotator "ChessBase"]
[PlyCount "101"]
[EventDate "2020.02.14"]
[EventType "swiss"]
[EventCountry "AUT"]
[SourceTitle "playchess.com"]
[Source "ChessBase"]
[SourceQuality "1"]
[TimeControl "40/5400+30:1800+30"]

1. Nf3 {[%emt 0:00:30]} d5 {[%emt 0:00:03]} 2. d4 {[%emt 0:00:29]} Bf5 {[%emt 0:00:24]} 3. c4 {[%emt 0:00:44]} e6 {[%emt 0:00:12]} 4. Nc3 {[%emt 0:00:35]} Nc6 {[%emt 0:05:47]} 5. Bf4 {[%emt 0:06:50]} Bd6 {[%emt 0:00:07]} 6. Bg3 {[%emt 0:04:11]} Nf6 {[%emt 0:06:02]} 7. e3 {[%emt 0:00:15]} O-O {[%emt 0:06:21]} 8. Rc1 {[%emt 0:05:00]} Ne4 {[%emt 0:06:43]} 9. cxd5 {[%emt 0:12:50]} Nxc3 {[%emt 0:01:11]} 10. Rxc3 {[%emt 0:01:07]} exd5 {[%emt 0:00:08]} 11. a3 {[%emt 0:00:30]} Bxg3 {[%emt 0:07:56]} 12. hxg3 {[%emt 0:00:07]} a6 {[%emt 0:00:29]} 13. Nh4 {[%emt 0:03:46]} Bg6 {[%emt 0:00:56]} 14. Qg4 {[%emt 0:21:45]} Qd6 {[%emt 0:13:55]} 15. Qh3 {[%emt 0:04:47]} h6 {[%emt 0:06:58]} 16. g4 {[%emt 0:00:04]} Rfe8 {[%emt 0:22:02]} 17. Nxg6 {[%emt 0:11:12]} Qxg6 {[%emt 0:10:37]} 18. Bd3 {[%emt 0:00:05]} Qf6 {[%emt 0:00:04]} 19. O-O {[%emt 0:00:27]} Re7 {[%emt 0:00:08]} 20. Rfc1 {[%emt 0:01:46]} Rae8 {[%emt 0:03:26]} 21. Qh5 {[%emt 0:07:30]} g5 {[%emt 0:01:43]} 22. Rc5 {[%emt 0:06:16]} Qd6 {[%emt 0:01:39]} 23. Qh2 {[%emt 0:04:25]} Rd8 {[%emt 0:02:11]} 24. Bxa6 {[%emt 0:02:00]} Nxd4 {[%emt 0:00:16]} 25. exd4 {[%emt 0:01:02]} Qxh2+ {[%emt 0:02:05]} 26. Kxh2 {[%emt 0:00:04]} bxa6 {[%emt 0:00:02]} 27. Rxc7 {[%emt 0:00:16]} Re4 {[%emt 0:00:31]} 28. Rc8 {[%emt 0:01:16]} Rxc8 29. Rxc8+ {[%emt 0:00:05]} Kg7 {[%emt 0:00:02]} 30. Rc6 {[%emt 0:00:17]} Rxg4 {[%emt 0:02:19]} 31. Rxa6 {[%emt 0:00:08]} Rxd4 {[%emt 0:00:02]} 32. b4 {[%emt 0:00:39]} Rd2 {[%emt 0:00:02]} 33. b5 {[%emt 0:01:53]} Rb2 {[%emt 0:01:18]} 34. a4 {[%emt 0:00:05]} d4 {[%emt 0:00:01]} 35. Kg3 {[%emt 0:01:56]} f5 {[%emt 0:01:06]} 36. b6 {[%emt 0:00:03]} d3 {[%emt 0:00:41]} 37. Kf3 {[%emt 0:01:20]} Re2 {[%emt 0:00:16]} 38. a5 {[%emt 0:01:07]} g4+ {[%emt 0:00:07]} 39. Kg3 {[%emt 0:01:23]} Rb2 {[%emt 0:01:08]} 40. Ra7+ {[%emt 0:00:28]} Kf6 {[%emt 0:00:13]} 41. Rd7 {[%emt 0:30:04]} Rb5 {[%emt 0:09:59]} 42. Rxd3 {[%emt 0:00:00]} Rxa5 {[%emt 0:07:38]} 43. Rb3 {[%emt 0:00:00]} Ra8 {[%emt 0:00:09]} 44. b7 {[%emt 0:00:00]} Rb8 {[%emt 0:00:01]} 45. Kf4 {[%emt 0:00:00]} Ke6 {[%emt 0:05:14]} 46. Rb6+ {[%emt 0:00:00]} Kd7 {[%emt 0:00:05]} 47. Rxh6 {[%emt 0:00:00]} Kc7 {[%emt 0:00:46]} 48. Rh7+ {[%emt 0:00:00]} Kc6 {[%emt 0:00:16]} 49. Kxf5 {[%emt 0:00:00]} Rg8 {[%emt 0:00:37]} 50. g3 {[%emt 0:00:00]} Kb6 {[%emt 0:00:19]} 51. Rg7 {[%emt 0:00:00]} 1-0

[Event "AUT-ch Open 2020"]
[Site "Graz"]
[Date "2020.02.15"]
[Round "2.32"]
[White "Pasti, Aron"]
[Black "Menezes, Christoph"]
[Result "1/2-1/2"]
[ECO "B90"]
[WhiteElo "2247"]
[BlackElo "2247"]
[Annotator "ChessBase"]
[PlyCount "74"]
[EventDate "2020.02.14"]
[EventType "swiss"]
[EventCountry "AUT"]
[SourceTitle "playchess.com"]
[Source "ChessBase"]
[SourceQuality "1"]
[TimeControl "40/5400+30:1800+30"]

1. e4 {[%emt 0:00:00]} c5 {[%emt 0:00:00]} 2. Nf3 {[%emt 0:00:00]} d6 {[%emt 0:00:00]} 3. d4 {[%emt 0:00:00]} cxd4 {[%emt 0:00:00]} 4. Nxd4 {[%emt 0:00:00]} Nf6 {[%emt 0:00:00]} 5. Nc3 {[%emt 0:00:01]} a6 {[%emt 0:00:04]} 6. h3 {[%emt 0:00:06]} e6 {[%emt 0:00:18]} 7. g4 {[%emt 0:00:06]} Be7 {[%emt 0:00:33]} 8. Bg2 {[%emt 0:00:14]} Nfd7 {[%emt 0:00:46]} 9. O-O {[%emt 0:02:59]} Nc6 {[%emt 0:00:56]} 10. Be3 {[%emt 0:02:08]} O-O {[%emt 0:00:56]} 11. f4 {[%emt 0:09:26]} Nxd4 {[%emt 0:01:04]} 12. Bxd4 {[%emt 0:04:49]} e5 {[%emt 0:01:11]} 13. Be3 {[%emt 0:04:02]} exf4 {[%emt 0:02:03]} 14. Bxf4 {[%emt 0:02:38]} Ne5 {[%emt 0:01:01]} 15. Nd5 {[%emt 0:02:31]} Be6 {[%emt 0:02:49]} 16. Qd4 {[%emt 0:05:37]} Bxd5 {[%emt 0:05:14]} 17. exd5 {[%emt 0:01:44]} Bf6 {[%emt 0:11:21]} 18. Qf2 {[%emt 0:02:01]} Ng6 {[%emt 0:08:17]} 19. Be3 {[%emt 0:02:31]} b5 {[%emt 0:09:22]} 20. c3 {[%emt 0:03:27]} Bh4 {[%emt 0:04:17]} 21. Qf5 {[%emt 0:05:53]} Qe7 {[%emt 0:02:09]} 22. Bd4 {[%emt 0:02:42]} Qe2 {[%emt 0:02:01]} 23. b3 {[%emt 0:08:07]} Rae8 {[%emt 0:05:41]} 24. a4 {[%emt 0:10:31]} bxa4 {[%emt 0:15:48]} 25. bxa4 {[%emt 0:02:09]} Bg3 {[%emt 0:08:22]} 26. Qf3 {[%emt 0:01:35]} Be5 {[%emt 0:01:21]} 27. Qxe2 {[%emt 0:06:57]} Bxd4+ {[%emt 0:00:04]} 28. Rf2 {[%emt 0:01:52]} Rxe2 {[%emt 0:01:02]} 29. cxd4 {[%emt 0:00:04]} Re3 {[%emt 0:00:22]} 30. Rf3 {[%emt 0:01:30]} Re7 {[%emt 0:01:27]} 31. Rc1 {[%emt 0:00:45]} Nh4 {[%emt 0:02:51]} 32. Rf2 {[%emt 0:02:28]} Re3 {[%emt 0:06:01]} 33. Rc6 Rd3 34. Rxd6 Rxd4 35. Rxa6 Nxg2 36. Kxg2 Rxd5 37. a5 Rdd8 1/2-1/2